Cogmind - Beta 15 @@@ ROGUE MODE // 2025.05.27 @ 20:56:51 Player: dorusv Result: Destroyed by G-34 Mercenary with Small Laser Performance ------------- Evolutions (1) 500 Regions Visited (2) 400 Robots Destroyed (10) 50 Value Destroyed (284) 284 Prototype IDs (0) 0 Alien Tech Used (0) 0 Bonus (0) 0 TOTAL SCORE: 1234 Bonus ------- None Cogmind --------- Core Integrity 0/400 Matter 299/300 Energy 100/100 System Corruption 0% Temperature Cool (6) Movement Core (350) Ox6 Location -9/Materials Parts ------- > --- POWER (2) -------- (None) > --- PROPULSION (3) --- (None) > --- UTILITY (2) ------ Large Storage Unit Structural Scanner > --- WEAPON (2) ------- (None) > --- INVENTORY (15) --- Light Ion Engine Improved Treads Heat Sink Small Storage Unit Structural Scanner Power Shielding Peak State ------------ > --- POWER ------------ Ion Engine Light Ion Engine > --- PROPULSION ------- Light Treads Improved Treads Improved Treads > --- UTILITY ---------- Small Storage Unit Structural Scanner > --- WEAPON ----------- Light Assault Rifle > --- INVENTORY -------- Light Ion Engine Improved Treads Heat Sink Structural Scanner Power Shielding [Rating: 10] Favorites ----------- Power Light Ion Engine Engine Light Ion Engine Propulsion Light Treads Treads Light Treads Leg Aluminum Leg Utility Small Storage Unit Device Seismic Detector Storage Small Storage Unit Weapon Small Laser Energy Gun Small Laser Ballistic Gun Light Assault Rifle Build | -11 -10 -9 ------- Run | Yrd Mat Mat Slots Evolved 2 | . . 2 Power 1 | . . 1 Propulsion 1 | . . 1 Utility . | . . . Weapon . | . . . Parts Attached 19 | 7 7 5 Power 4 | 1 2 1 Engine 4 | 1 2 1 Core . | . . . Reactor . | . . . Propulsion 6 | 2 2 2 Treads 4 | 2 . 2 Leg 2 | . 2 . Wheel . | . . . Hover . | . . . Flight . | . . . Utility 5 | 2 1 2 Device 3 | 1 1 1 Storage 2 | 1 . 1 Processor . | . . . Hackware . | . . . Protection . | . . . Artifact . | . . . Weapon 4 | 2 2 . Energy Gun 3 | 2 1 . Energy Cannon . | . . . Ballistic Gun 1 | . 1 . Ballistic Cannon . | . . . Launcher . | . . . Special Weapon . | . . . Impact Weapon . | . . . Slashing Weapon . | . . . Piercing Weapon . | . . . Special Melee Weapon . | . . . Unidentified Prototypes . | . . . Corrupted Parts 1 | . 1 . System Corruption 1 | . 1 . Parts Lost 13 | . 6 7 Power 3 | . 1 2 Propulsion 6 | . 2 4 Utility 1 | . 1 . Weapon 3 | . 2 1 Highest Loss Streak 6 | . 4 6 To Critical Strikes . | . . . Average Backups 2 | 1 2 5 Power 1 | . 1 1 Propulsion . | . . 1 Utility . | . . 3 Weapon . | . . . Tool/Special . | . . . Unused Backups 3 | . . 3 Power . | . . . Propulsion 1 | . . 1 Utility 2 | . . 2 Weapon . | . . . Tool/Special . | . . . Average Slot Usage (%) 85 | . 91 72 Engine 14 | . 13 16 Treads 24 | . 23 25 Device 11 | . 11 11 Storage 13 | . 14 11 Energy Gun 14 | . 21 . Ballistic Gun 5 | . 4 7 Peak Build Rating 10 | 7 7 10 Average Rating 6 | 5 6 7 On Entrance 4 | . 7 6 Naked Turns . | . . . Heaviest Build 30 | 12 14 30 Greatest Support 66 | 40 40 66 Greatest Overweight (x) 6 | . 3 6 Average Overweight (x) . | . . . Largest Inventory Capacity 15 | 8 8 15 Average Capacity 8 | 7 8 11 Most Carried 6 | 2 5 6 Average Carried 2 | 1 2 5 Final Capacity 15 | 8 8 15 Final Carried 6 | 2 2 6 Class Distribution -------------------- 100% | Mutant Dominant Class ---------------- Mutant | -10/Materials Mutant | -9/Materials Resources | -11 -10 -9 ----------- Run | Yrd Mat Mat Matter Collected 399 | 251 118 30 Remotely . | . . . Salvage Created 401 | 95 276 30 Parts 19 | 4 13 2 Haulers Intercepted . | . . . Recyclers Shooed . | . . . Parts Field Recycled . | . . . Retrieved Matter . | . . . Parts Self-Destructed . | . . . Prevented . | . . . Kills | -11 -10 -9 ------- Run | Yrd Mat Mat Combat Hostiles Destroyed 8 | . 7 1 Guns 7 | . 6 1 AOE 1 | . 1 . Classes Destroyed 4 | 2 2 . Tunneler 1 | 1 . . Recycler 1 | 1 . . Swarmer 1 | . 1 . Grunt 7 | . 6 1 Best Kill Streak 2 | 1 2 1 Combat Bots Only 2 | . 2 1 Max Kills in Single Turn 1 | 1 1 1 Gunslinging . | . . . Exploded 1 | . 1 . Melee . | . . . Uniques/NPCs Destroyed . | . . . Combat | -11 -10 -9 -------- Run | Yrd Mat Mat Hostile Shots Fired 177 | . 76 101 Missed 37 | . 15 22 Hits 140 | . 61 79 Projectile 140 | . 61 79 Damage Taken 1803 | . 833 970 Core 536 | . 133 403 Absorbed by Shields . | . . . Core Remaining (%) 73 | 100 46 . Volleys Fired 83 | 5 62 16 Largest 2 | 2 2 1 Hottest 80 | 80 80 20 Shots Fired 118 | 10 92 16 Gun 118 | 10 92 16 Cannon . | . . . Launcher . | . . . Special . | . . . Kinetic 45 | . 29 16 Thermal 43 | 5 38 . Explosive . | . . . Electromagnetic 30 | 5 25 . Robot Hit Streak 12 | 3 10 12 Robot Miss Streak 6 | 2 6 1 Penetration Max . | . . . Secondary Targets . | . . . Shots Hit Robots 77 | 6 57 14 Core Hits 23 | 3 17 3 Critical Kills . | . . . Critical Parts Destroyed 1 | . . 1 Critical Strikes 1 | . . 1 Destroy 1 | . . 1 Melee Attacks . | . . . Impact . | . . . Slashing . | . . . Piercing . | . . . Sneak Attacks . | . . . Combat Hostiles . | . . . Follow-up Attacks . | . . . Damage Inflicted 901 | 107 684 110 Guns 791 | 61 620 110 Cannons . | . . . Explosions 110 | 46 64 . Melee . | . . . Ramming . | . . . Kinetic 303 | . 193 110 Thermal 439 | 68 371 . Explosive . | . . . Electromagnetic 159 | 39 120 . Impact . | . . . Slashing . | . . . Piercing . | . . . Highest Corruption 1 | . 1 . Average Corruption 1 | . 1 . Corruption Purged . | . . . Corruption Blocked . | . . . Effects 1 | . 1 . Parts Rejected 1 | . 1 . Overload Shots . | . . . Overflow Damage 19 | . 19 . Projectiles . | . . . Explosions 19 | . 19 . Melee . | . . . Knockbacks . | . . . Impact . | . . . Kinetic . | . . . Secondary . | . . . Self-Inflicted Damage 40 | . 40 . Shots 1 | . 1 . Rammed . | . . . Targets Rammed . | . . . Kicked . | . . . Crushed . | . . . Highest Temperature 294 | 72 294 25 Average Temperature 75 | 33 90 12 Received Heat Transfer 984 | . 438 546 Siege Activations . | . . . Martial Activations . | . . . Shielding Activations . | . . . Robots Disrupted . | . . . Combat Hostiles . | . . . Robots Corrupted . | . . . Combat Hostiles . | . . . Parts Fried . | . . . Impact Corruptions . | . . . Robots Melted . | . . . Combat Hostiles . | . . . Parts Melted . | . . . Heat Transferred 900 | 100 800 . Parts Sabotaged . | . . . Parts Stolen . | . . . Parts Stripped . | . . . Power Chain Reactions 2 | 1 1 . Alert | -11 -10 -9 ------- Run | Yrd Mat Mat Maximum Alert Level . | . . . Low Security (%) 100 | 100 100 100 Level 1 . | . . . Level 2 . | . . . Level 3 . | . . . Level 4 . | . . . Level 5 . | . . . High Security . | . . . Max Security . | . . . Peak Influence 60 | 5 60 20 Initial 8 | . . 8 Average 6 | . 10 2 Influence Increases 208 | 10 178 20 Destroy 0b10 Robot/C 160 | . 140 20 Destroy 0b10 Robot/NC 10 | 10 . . Destroy Leader 20 | . 20 . Disable Machine 15 | . 15 . Destroy Structure 3 | . 3 . Influence Decreases 208 | 10 158 40 Entered New Map 12 | . . 12 Time Decay 152 | 10 114 28 Lost Part 44 | . 44 . Squads Dispatched 2 | . 2 . Investigation 1 | . 1 . Extermination . | . . . Reinforcement 1 | . 1 . Assault . | . . . Garrison . | . . . Intercept . | . . . Searches Triggered . | . . . Construction Impeded . | . . . Haulers Reinforced . | . . . Active Scanning Responses . | . . . Cargo Convoy Interrupts . | . . . Stealth | -11 -10 -9 --------- Run | Yrd Mat Mat Distress Signals 3 | . 3 . Communications Jammed . | . . . Distress Signals . | . . . Times Spotted 19 | . 15 4 Peak Tracking Total 5 | . 5 3 Tactical Retreats . | . . . Traps | -11 -10 -9 ------- Run | Yrd Mat Mat Traps Triggered 1 | . 1 . Indirectly . | . . . Trap Hack Attempts . | . . . Triggered . | . . . Disarmed . | . . . Reprogrammed . | . . . Reused . | . . . Traps Extracted . | . . . Installed . | . . . Triggered . | . . . Machines | -11 -10 -9 ---------- Run | Yrd Mat Mat Machines Disabled 1 | . 1 . Max in Single Turn 1 | . 1 . Machines Repaired . | . . . Machines Dismantled . | . . . Machines Sabotaged . | . . . Overloaded Fab Kills . | . . . Hacking | -11 -10 -9 --------- Run | Yrd Mat Mat Machines Accessed . | . . . Terminals . | . . . Fabricators . | . . . Repair Stations . | . . . Recycling Units . | . . . Scanalyzers . | . . . Garrison Access . | . . . Total Hacks . | . . . Successful . | . . . Failed . | . . . Catastrophic . | . . . Database Lockouts . | . . . Manual . | . . . Terminals . | . . . Fabricators . | . . . Repair Stations . | . . . Recycling Units . | . . . Scanalyzers . | . . . Garrison Access . | . . . Terminal Hacks . | . . . Fabricator Hacks . | . . . Repair Station Hacks . | . . . Recycling Unit Hacks . | . . . Scanalyzer . | . . . Garrison Access Hacks . | . . . Unauthorized Hacks . | . . . Terminals . | . . . Fabricators . | . . . Repair Stations . | . . . Recycling Units . | . . . Scanalyzers . | . . . Garrison Access . | . . . Data Cores Recovered . | . . . Used . | . . . Hacking Detections . | . . . Full Trace Events . | . . . Feedback Events . | . . . Feedback Blocked . | . . . Robot Schematics Acquired . | . . . Robots Built . | . . . Authchips . | . . . Time . | . . . Total Robot Build Rating . | . . . Part Schematics Acquired . | . . . Parts Built . | . . . Authchips . | . . . Time . | . . . Total Part Build Rating . | . . . Parts Repaired . | . . . Time . | . . . Parts Recycled . | . . . Recycled Matter . | . . . Retrieved Matter . | . . . Retrieved Components . | . . . Parts Scanalyzed . | . . . Part Schematics Acquired . | . . . Parts Damaged . | . . . Bothacking | -11 -10 -9 ------------ Run | Yrd Mat Mat Used RIF Installer . | . . . Robots Hacked . | . . . Non-combat . | . . . Combat . | . . . Robot Hacks Applied . | . . . Relay Couplers Released . | . . . Fabnet Peak Effective % . | . . . Robots Rewired . | . . . Allies Hacked . | . . . Hacks Repelled . | . . . Allies | -11 -10 -9 -------- Run | Yrd Mat Mat Total Allies . | . . . Largest Group . | . . . Highest-Rated Group . | . . . Highest-Rated Ally . | . . . Total Orders . | . . . Ally Attacks . | . . . Total Damage . | . . . Kills . | . . . Allies Corrupted . | . . . Allies Melted . | . . . Intel | -11 -10 -9 ------- Run | Yrd Mat Mat Active Infowar (turns) 660 | 22 390 248 Structural 248 | . . 248 Seismic 412 | 22 390 . Robot Analysis Total . | . . . Derelict Logs Recovered . | . . . Drone Launches . | . . . Drone Recoveries . | . . . Exploration | -11 -10 -9 ------------- Run | Yrd Mat Mat Turns Passed 1071 | 143 652 276 Spaces Moved 483 | 77 275 131 Core 25 | 6 12 7 Treads 452 | 71 257 124 Legs 6 | . 6 . Wheels . | . . . Hover . | . . . Flight . | . . . Fastest Speed 50 | 50 120 160 Average Speed 162 | 151 161 170 Slowest Speed 350 | 160 200 350 Overloaded Moves . | . . . Propulsion Burnouts . | . . . Robots Hopped . | . . . Potential Cave-ins . | . . . Cave-ins Triggered . | . . . Exploration Rate (%) 14 | 6 29 8 Regions Visited 2 Branch Regions . Pre-discovered Areas . | . . . Known Exits Taken . | . . . Unknown Exits Taken 2 | 1 1 . Scrap Searched . | . . . Spaces Dug . | . . . Terrain Destroyed 5 | 3 2 . Melee . | . . . Projectile . | . . . AOE 5 | 3 2 . Terrain Rammed . | . . . Walls Destroyed . | . . . Machines Disabled . | . . . Actions | -11 -10 -9 --------- Run | Yrd Mat Mat Total 657 | 90 396 171 Wait 58 | . 45 13 Move 481 | 76 274 131 Hop . | . . . Pick Up 9 | 2 2 5 Fast Attach 15 | 7 6 2 Attach 4 | . 2 2 Detach 3 | . 2 1 Swap 2 | . 1 1 Drop 2 | . 2 . Fire 83 | 5 62 16 Melee . | . . . Ram . | . . . Kick . | . . . Crush . | . . . Escape Stasis . | . . . Rewire . | . . . Trap . | . . . Miscellaneous . | . . . Route ------- -11/Scrapyard -10/Materials -9/Materials History --------- Turn | Location | Event 20 | -11/Scrapyard | Discovered new exit (range 16) 144 | -11/Scrapyard | Entered Materials 316 | -10/Materials | Build established: Mutant 632 | -10/Materials | Lost 4 parts (1p2n1w) 774 | -10/Materials | Discovered new exit (range 3) 775 | -10/Materials | Core integrity fell below 50% 796 | -10/Materials | Entered another Materials area 796 | -9/Materials | Evolved 2 slots: Power x1, Propulsion x1 1047 | -9/Materials | Core integrity fell below 50% 1068 | -9/Materials | Core integrity fell below 20% 1072 | -9/Materials | Destroyed by G-34 Mercenary with Small Laser Last Messages --------------- 00817_ Acquired Imp. Treads. 00824_ Acquired Structural Scanner. 00828_ Acquired Power Shielding. 00831_ Acquired Imp. Treads. 00836_ Acquired Structural Scanner. 00894_ Lgt. Treads destroyed. 00897_ G-34 Mercenary destroyed. 00899_ Acquired 30 matter. 00943_ Acquired Lrg. Storage Unit. 00969_ G-47 Trooper suffers critical hit (Destroy). 00969_ Destroyed Aluminum Leg. 00977_ Ion Engine destroyed. 00988_ M-13 Machinist repairs G-47 Trooper. 00988_ Lgt. Assault Rifle destroyed. 00990_ M-13 Machinist fits Backup Propulsion I on G-47 Trooper. 00996_ M-13 Machinist repairs G-34 Mercenary. 01005_ Imp. Treads destroyed. 01028_ Lgt. Treads destroyed. 01030_ Lgt. Ion Engine destroyed. 01049_ Imp. Treads destroyed. Map ----- +----------------------------------------------------+ | ?????????????????????????????????????? | | ?????????????????????????????????????? | | ?????????????????????????????????????? | | ?????????????????????????????????????? | | ?????????????????????????????????????? | | ?????????????????????????????????????? | | ?????????????????????????????????????? | | ?????????????????????????????????????? | | ?????????????????????????????????????? | | ?????????????????????????????????????? | | ?????????????????????????????????????? | | ?????????????????????????????????????? | | ?????????????????????????????????????? | | ????????????? ??????????????????????? | | ????????????? ??????????????????????? | | ????????????? ??????????????????????? | | ??????????# ????????????????????? | | ??????????###+###????????????????????? | | ??????????## ????????????????????? | | ??????????## """ ##????????????????? | | ??????????## """""##????????????????? | | ??????????## """""##????????????????? | | ??????????## """""##????????????????? | | ??????????## """ ##????????????????? | | ??????????## # ????????????????? | | ??????????## @ ##????????????????? | | ??????????## !##????????????????? | | ??????????## ##????????????????? | | ??????????##gtg ##????????????????? | | ??????????##g####### ????????????????? | | ??????????## ####### ????????????????? | | ??????????## ##??????????????????????? | | ??????????## ####### ??????????????? | | ############ ########+#??????????????? | | ############ ????????? | | ## ! # ######+#??????????????? | | ## # ###### ??????????????? | | ## # !###????????????????? | | ## + !##????????????????? | | ## """ """ # !##????????????????? | | ## """ """ # ##????????????????? | | ## """ """ # !##????????????????? | | ## # !###????????????????? | | ############ ######????????????????? | | ############ #####?????????????????? | | ??????????## ##????????????????????? | | ??????????## ##????????????????????? | | ??????????## ##????????????????????? | | ??????????## ##????????????????????? | | ############ ##????????????????????? | +----------------------------------------------------+ Best States ------------- Heat Dissipation 38 Energy Generation 15 Energy Capacity 275 Matter Stores 300 Matter Capacity 300 Sight Range 16 Terrain Scan Density 10 Evasion (%) 45 Recoil Reduction 3 Item Schematics ----------------- None Robot Schematics ------------------ None Fabricated ------------ Nothing Repaired ---------- Nothing Alien Tech Used ----------------- None Achievements -------------- None Challenges ------------ None Game ------ Seed StealthReactivePropulsion Manual? 0 Play Time 00:11:43 Cumulative 9.8 hours Start 2025.05.27 @ 20:46:53 End 2025.05.27 @ 20:56:51 Sessions 1 Manual Loads 0 Difficulty Rogue Special Mode None Game No. 35 Rogue 32 Adventurer 3 Explorer 0 Win Type - Total 0 Types 0/0/0/0/0/0/0/0/0/0 Lore% 10 Gallery% 15 Achievement% 17 Wizard Run 0 Options --------- Layout 1 ASCII 0 Keyboard 1 Movement Arrows Keybinds 0 Fullscreen 2 Font 32/SmallcapsGlow Map View 130x35 Zoom Use 45% Tactical HUD 1 Map Filters NONE Filters NONE Steam 1 RUN: 3e2f784d-6bfb-48ba-a712-ce3d8aa692c7